Cogmind - Beta 17 @@@ ROGUE MODE // 2026.08.08 @ 01:31:53 Player: MrMistersen Result: Destroyed self with Mini Grenade Launcher Performance ------------- Evolutions (2) 1000 Regions Visited (3) 600 Robots Destroyed (37) 185 Value Destroyed (1260) 1260 Prototype IDs (1) 20 Alien Tech Used (0) 0 Bonus (0) 0 TOTAL SCORE: 3065 Bonus ------- None Cogmind --------- Core Integrity 0/550 Matter 36/300 Energy 302/310 System Corruption 0% Temperature Cool (0) Movement Core (900) Ox17 Location -8/Materials Parts ------- > --- POWER (3) -------- Heavy Deuterium Engine > --- PROPULSION (2) --- (None) > --- UTILITY (3) ------ High-capacity Storage Unit > --- WEAPON (3) ------- Small Laser Mini Grenade Launcher > --- INVENTORY (20) --- Faulty Heavy Deuterium Engine Faulty Heavy Deuterium Engine Heat Sink Light Armor Plating Peak State ------------ > --- POWER ------------ Light Nuclear Core Heavy Deuterium Engine Heavy Deuterium Engine > --- PROPULSION ------- Light Treads > --- UTILITY ---------- High-capacity Storage Unit > --- WEAPON ----------- Gauss Cannon Gauss Cannon Gauss Cannon > --- INVENTORY -------- Heavy Deuterium Engine Heavy Deuterium Engine Heat Sink Light Armor Plating EM Pulse Gun Small Laser Gauss Cannon Mini Grenade Launcher [Rating: 29] Favorites ----------- Power Improved Ion Engine Engine Improved Ion Engine Power Core Light Nuclear Core Propulsion Light Treads Treads Light Treads Leg Aluminum Leg Hover Unit Hover Unit Utility High-capacity Storage Unit Storage High-capacity Storage Unit Processor Targeting Computer Weapon Autogun Energy Gun Small Laser Ballistic Gun Autogun Ballistic Cannon Gauss Cannon Launcher Mini Grenade Launcher Build | -11 -10 -9 -8 ------- Run | Yrd Mat Mat Mat Slots Evolved 4 | . . 2 2 Power 2 | . . 1 1 Propulsion . | . . . . Utility 1 | . . . 1 Weapon 1 | . . 1 . Parts Attached 39 | 6 5 11 17 Power 10 | 1 1 3 5 Engine 8 | 1 1 2 4 Core 2 | . . 1 1 Reactor . | . . . . Propulsion 8 | 2 2 2 2 Treads 4 | . . 2 2 Leg 2 | 2 . . . Wheel . | . . . . Hover 2 | . 2 . . Flight . | . . . . Utility 5 | 1 1 1 2 Device . | . . . . Storage 3 | 1 . 1 1 Processor 2 | . 1 . 1 Hackware . | . . . . Protection . | . . . . Artifact . | . . . . Weapon 16 | 2 1 5 8 Energy Gun 2 | 1 . . 1 Energy Cannon . | . . . . Ballistic Gun 8 | 1 1 5 1 Ballistic Cannon 4 | . . . 4 Launcher 2 | . . . 2 Special Weapon . | . . . . Impact Weapon . | . . . . Slashing Weapon . | . . . . Piercing Weapon . | . . . . Special Melee Weapon . | . . . . Unidentified Prototypes 1 | . . . 1 Parts Lost 26 | . . 8 18 Power 6 | . . 1 5 Propulsion 4 | . . 1 3 Utility 3 | . . 1 2 Weapon 13 | . . 5 8 Highest Loss Streak 10 | . . 3 10 To Critical Strikes 2 | . . 1 1 Average Backups 8 | . 4 11 7 Power 1 | . . 1 1 Propulsion 1 | . 1 1 . Utility 2 | . 1 3 2 Weapon 3 | . 1 5 3 Tool/Special . | . . . . Unused Backups 7 | 1 1 1 4 Power 3 | 1 . . 2 Propulsion 1 | . 1 . . Utility 2 | . . . 2 Weapon 1 | . . 1 . Tool/Special . | . . . . Average Slot Usage (%) 85 | . 96 89 68 Engine 13 | . 14 10 18 Core 3 | . . 6 2 Treads 9 | . . 14 8 Leg 5 | . 23 . . Hover 3 | . 4 4 . Storage 11 | . 14 11 11 Processor 8 | . 11 10 2 Ballistic Gun 22 | . 25 30 6 Ballistic Cannon 3 | . . . 12 Peak Build Rating 29 | 6 7 17 29 Average Rating 13 | 3 6 13 20 On Entrance 5 | . 6 7 7 Avg Prop Armor Cover (%) . | . . . . Naked Turns . | . . . . Heaviest Build 88 | 13 14 61 88 Greatest Support 40 | 20 20 40 40 Greatest Overweight (x) 29 | 2 . 9 29 Average Overweight (x) 1 | . . 1 4 Largest Inventory Capacity 20 | 8 8 20 20 Average Capacity 16 | 6 8 19 20 Most Carried 14 | 3 8 14 14 Average Carried 8 | . 5 11 7 Final Capacity 20 | 8 8 20 20 Final Carried 13 | . 7 13 4 Class Distribution -------------------- 48% | Gunner 41% | Mutant 9% | Skirmisher Dominant Class ---------------- Mutant | -10/Materials Gunner | -9/Materials Gunner | -8/Materials Resources | -11 -10 -9 -8 ----------- Run | Yrd Mat Mat Mat Matter Collected 1251 | 260 363 478 150 Remotely . | . . . . Salvage Created 1312 | . 346 668 298 Parts 66 | . 19 34 13 Haulers Intercepted . | . . . . Recyclers Shooed 1 | . . 1 . Parts Field Recycled . | . . . . Retrieved Matter . | . . . . Parts Self-Destructed . | . . . . Prevented . | . . . . Parts Restored . | . . . . Kills | -11 -10 -9 -8 ------- Run | Yrd Mat Mat Mat Combat Hostiles Destroyed 27 | . 6 14 7 Guns 21 | . 6 14 1 Cannons 5 | . . . 5 AOE 1 | . . . 1 Classes Destroyed 9 | . 3 4 2 Worker 2 | . 2 . . Builder 1 | . . . 1 Recycler 1 | . . 1 . Operator 1 | . . 1 . Watcher 5 | . 2 2 1 Swarmer 3 | . . 3 . Grunt 16 | . 6 8 2 Sentry 3 | . . 3 . Specialist 5 | . . . 5 Best Kill Streak 7 | . 3 7 5 Combat Bots Only 7 | . 2 7 4 Max Kills in Single Turn 2 | . 2 2 1 Gunslinging . | . . . . Exploded 1 | . . . 1 Melee . | . . . . Uniques/NPCs Destroyed . | . . . . Combat | -11 -10 -9 -8 -------- Run | Yrd Mat Mat Mat Hostile Shots Fired 392 | . 42 115 235 Missed 107 | . 11 34 62 Hits 285 | . 31 81 173 Projectile 285 | . 31 81 173 Critical Strikes 11 | . . 3 8 Damage Taken 4192 | . 411 1094 2687 Core 1069 | . 141 373 555 Absorbed by Shields . | . . . . Core Remaining (%) 49 | 100 43 6 . Volleys Fired 115 | . 48 42 25 Largest 3 | . 2 3 3 Hottest 120 | . 60 69 120 Shots Fired 271 | . 93 113 65 Gun 222 | . 93 113 16 Cannon 40 | . . . 40 Launcher 9 | . . . 9 Special . | . . . . Kinetic 247 | . 84 113 50 Thermal 11 | . 9 . 2 Explosive 9 | . . . 9 Electromagnetic 4 | . . . 4 Robot Hit Streak 17 | . 12 16 17 Robot Miss Streak 10 | . 10 7 5 Penetration Max . | . . . . Secondary Targets 5 | . 3 2 . Max Gunslinging Chain 1 | . 1 1 . Shots Hit Robots 146 | . 51 69 26 Core Hits 57 | . 19 26 12 Critical Kills . | . . . . Critical Parts Destroyed 1 | . . 1 . Critical Strikes 4 | . . 1 3 Destroy 1 | . . 1 . Blast 3 | . . . 3 Melee Attacks . | . . . . Impact . | . . . . Slashing . | . . . . Piercing . | . . . . Sneak Attacks . | . . . . Combat Hostiles . | . . . . Follow-up Attacks . | . . . . Damage Inflicted 2857 | . 679 1088 1090 Guns 1812 | . 663 1029 120 Cannons 478 | . . . 478 Explosions 546 | . . 57 489 Melee . | . . . . Ramming 21 | . 16 2 3 Kinetic 2258 | . 652 1029 577 Thermal 261 | . 11 57 193 Explosive 317 | . . . 317 Electromagnetic . | . . . . Impact . | . . . . Slashing . | . . . . Piercing . | . . . . Highest Corruption 2 | . 2 . . Average Corruption 1 | . 1 . . Corruption Purged . | . . . . Corruption Blocked . | . . . . Effects 1 | . 1 . . Data Loss (minor) 1 | . 1 . . Overload Shots . | . . . . Overflow Damage 120 | . . 47 73 Projectiles 6 | . . . 6 Explosions 114 | . . 47 67 Melee . | . . . . Knockbacks 5 | . . . 5 Impact . | . . . . Kinetic 5 | . . . 5 Secondary . | . . . . Self-Inflicted Damage 276 | . 1 112 163 Shots 7 | . . 1 6 Rammed 7 | . 2 1 4 Targets Rammed 9 | . 4 1 4 Kicked 2 | . 2 . . Crushed . | . . . . Highest Temperature 260 | . 3 166 260 Average Temperature 64 | . 1 36 93 Received Heat Transfer 1044 | . 231 354 459 Effects 1 | . . . 1 Energy Bleed 1 | . . . 1 Siege Activations . | . . . . Martial Activations . | . . . . Shielding Activations . | . . . . Robots Disrupted . | . . . . Combat Hostiles . | . . . . Robots Corrupted . | . . . . Combat Hostiles . | . . . . Parts Fried . | . . . . Impact Corruptions . | . . . . Robots Melted . | . . . . Combat Hostiles . | . . . . Parts Melted . | . . . . Heat Transferred 225 | . 25 50 150 Parts Sabotaged . | . . . . Parts Stolen . | . . . . Parts Stripped . | . . . . Power Chain Reactions . | . . . . Alert | -11 -10 -9 -8 ------- Run | Yrd Mat Mat Mat Maximum Alert Level . | . . . . Low Security (%) 100 | 100 100 100 100 Level 1 . | . . . . Level 2 . | . . . . Level 3 . | . . . . Level 4 . | . . . . Level 5 . | . . . . High Security . | . . . . Max Security . | . . . . Peak Influence 183 | . 84 183 81 Initial . | . . . . Average 49 | . 22 84 20 Influence Increases 976 | . 179 469 328 Destroy 0b10 Robot/C 540 | . 120 280 140 Destroy 0b10 Robot/NC 50 | . 20 20 10 Destroy Leader 140 | . 24 74 42 Successful Hack 12 | . . 12 . Disable Machine 75 | . 15 45 15 Destroy Structure 99 | . . 23 76 Lose Combat Pursuer 60 | . . 15 45 Influence Decreases 947 | . 179 468 300 Entered New Map 1 | . . . 1 Time Decay 788 | . 179 408 201 Lost Part 158 | . . 60 98 Squads Dispatched 9 | . 2 2 5 Investigation . | . . . . Extermination . | . . . . Reinforcement 9 | . 2 2 5 Assault . | . . . . Garrison . | . . . . Intercept . | . . . . Searches Triggered . | . . . . Construction Impeded 1 | . . . 1 Haulers Reinforced . | . . . . Active Scanning Responses . | . . . . Cargo Convoy Interrupts . | . . . . Stealth | -11 -10 -9 -8 --------- Run | Yrd Mat Mat Mat Distress Signals 1 | . . 1 . Communications Jammed . | . . . . Distress Signals . | . . . . Times Spotted 52 | . 14 23 15 Peak Tracking Total 10 | . 6 10 3 Tactical Retreats 4 | . . 1 3 Traps | -11 -10 -9 -8 ------- Run | Yrd Mat Mat Mat Traps Triggered 3 | . 2 1 . Indirectly . | . . . . Trap Hack Attempts . | . . . . Triggered . | . . . . Disarmed . | . . . . Reprogrammed . | . . . . Reused . | . . . . Traps Extracted . | . . . . Installed . | . . . . Triggered . | . . . . Machines | -11 -10 -9 -8 ---------- Run | Yrd Mat Mat Mat Machines Disabled 5 | . 1 3 1 Max in Single Turn 3 | . 1 3 1 Machines Repaired . | . . . . Machines Dismantled . | . . . . Machines Sabotaged . | . . . . Overloaded Fab Kills . | . . . . Hacking | -11 -10 -9 -8 --------- Run | Yrd Mat Mat Mat Machines Accessed 4 | . 2 2 . Terminals 1 | . 1 . . Fabricators . | . . . . Repair Stations 2 | . . 2 . Recycling Units 1 | . 1 . . Scanalyzers . | . . . . Garrison Access . | . . . . Total Hacks 7 | . 3 4 . Successful 2 | . 1 1 . Failed 5 | . 2 3 . Catastrophic 1 | . . 1 . Database Lockouts . | . . . . Manual . | . . . . Terminals 1 | . 1 . . Fabricators . | . . . . Repair Stations 4 | . . 4 . Recycling Units 2 | . 2 . . Scanalyzers . | . . . . Garrison Access . | . . . . Terminal Hacks 1 | . 1 . . Recall Reinforcements 1 | . 1 . . Fabricator Hacks . | . . . . Repair Station Hacks 1 | . . 1 . Scan Component 1 | . . 1 . Recycling Unit Hacks . | . . . . Scanalyzer . | . . . . Garrison Access Hacks . | . . . . Unauthorized Hacks . | . . . . Terminals . | . . . . Fabricators . | . . . . Repair Stations . | . . . . Recycling Units . | . . . . Scanalyzers . | . . . . Garrison Access . | . . . . Data Cores Recovered . | . . . . Used . | . . . . Hacking Detections 2 | . . 2 . Full Trace Events 1 | . . 1 . Feedback Events . | . . . . Feedback Blocked . | . . . . Robot Schematics Acquired . | . . . . Robots Built . | . . . . Authchips . | . . . . Time . | . . . . Total Robot Build Rating . | . . . . Part Schematics Acquired . | . . . . Parts Built . | . . . . Authchips . | . . . . Time . | . . . . Total Part Build Rating . | . . . . Part Studies Acquired . | . . . . Parts Repaired . | . . . . Time . | . . . . Parts Recycled . | . . . . Recycled Matter . | . . . . Retrieved Matter . | . . . . Retrieved Components . | . . . . Parts Scanalyzed . | . . . . Part Schematics Acquired . | . . . . Parts Damaged . | . . . . Bothacking | -11 -10 -9 -8 ------------ Run | Yrd Mat Mat Mat Used RIF Installer . | . . . . Robots Hacked . | . . . . Non-combat . | . . . . Combat . | . . . . Robot Hacks Applied . | . . . . Relay Couplers Released . | . . . . Fabnet Peak Effective % . | . . . . Robots Rewired . | . . . . Allies Hacked . | . . . . Hacks Repelled . | . . . . Allies | -11 -10 -9 -8 -------- Run | Yrd Mat Mat Mat Total Allies . | . . . . Largest Group . | . . . . Highest-Rated Group . | . . . . Highest-Rated Ally . | . . . . Total Orders . | . . . . Ally Attacks . | . . . . Total Damage . | . . . . Kills . | . . . . Allies Corrupted . | . . . . Allies Melted . | . . . . Intel | -11 -10 -9 -8 ------- Run | Yrd Mat Mat Mat Active Infowar (turns) 262 | . . . 262 Optics 262 | . . . 262 Robot Analysis Total . | . . . . Derelict Logs Recovered . | . . . . Drone Launches . | . . . . Drone Recoveries . | . . . . Exploration | -11 -10 -9 -8 ------------- Run | Yrd Mat Mat Mat Turns Passed 2893 | 91 687 1337 778 Spaces Moved 1227 | 85 531 455 156 Core 74 | 54 . . 20 Treads 521 | . . 385 136 Legs 383 | 31 352 . . Wheels . | . . . . Hover 249 | . 179 70 . Flight . | . . . . Fastest Speed 50 | 50 56 56 240 Average Speed 197 | 90 98 261 408 Slowest Speed 1500 | 150 120 600 1500 Overloaded Moves . | . . . . Propulsion Burnouts . | . . . . Robots Hopped . | . . . . Potential Cave-ins . | . . . . Cave-ins Triggered . | . . . . Exploration Rate (%) 33 | 3 71 44 17 Regions Visited 3 Branch Regions . Pre-discovered Areas . | . . . . Known Exits Taken . | . . . . Unknown Exits Taken 3 | 1 1 1 . Scrap Searched . | . . . . Spaces Dug . | . . . . Terrain Destroyed 110 | . . 21 89 Melee . | . . . . Projectile 30 | . . . 30 AOE 80 | . . 21 59 Terrain Rammed . | . . . . Walls Destroyed . | . . . . Machines Disabled . | . . . . Actions | -11 -10 -9 -8 --------- Run | Yrd Mat Mat Mat Total 1446 | 99 602 531 214 Wait 2 | 1 . 1 . Move 1224 | 84 530 454 156 Hop . | . . . . Pick Up 45 | 7 11 18 9 Fast Attach . | . . . . Attach 34 | 6 1 9 18 Detach . | . . . . Swap 8 | . 4 2 2 Drop 9 | 1 4 4 . Fire 115 | . 48 42 25 Melee . | . . . . Ram 6 | . 2 . 4 Kick 2 | . 2 . . Crush 1 | . . 1 . Escape Stasis . | . . . . Rewire . | . . . . Trap . | . . . . Miscellaneous . | . . . . Route ------- -11/Scrapyard -10/Materials (discovered 3 exits: *Mat x2 / [*Min]) -9/Materials (discovered 2 exits: [*Mat x2]) -8/Materials (discovered 1 exit: [*Sto]) History --------- Turn | Location | Event 16 | -11/Scrapyard | Discovered new exit (range 16) 92 | -11/Scrapyard | Entered Materials 305 | -10/Materials | Build established: Mutant 357 | -10/Materials | Discovered new exit (range 5) 456 | -10/Materials | Discovered new exit (range 16) 502 | -10/Materials | Core integrity fell below 50% 606 | -10/Materials | Discovered new exit (range 10) 779 | -10/Materials | Entered another Materials area 779 | -9/Materials | Evolved 2 slots: Power x1, Weapon x1 1004 | -9/Materials | Lost 3 parts (1p2w) 1011 | -9/Materials | Destroyed 7 combat bots 1039 | -9/Materials | Core integrity fell below 50% 1380 | -9/Materials | Build established: Gunner 1639 | -9/Materials | Core integrity fell below 20% 1721 | -9/Materials | Discovered new exit (range 15) 2103 | -9/Materials | Discovered new exit (range 4) 2116 | -9/Materials | Entered another Materials area 2116 | -8/Materials | Evolved 2 slots: Power x1, Utility x1 2272 | -8/Materials | Discovered new exit (range 14) 2441 | -8/Materials | Lost 10 parts (3p2n2u3w) 2715 | -8/Materials | Core integrity fell below 50% 2742 | -8/Materials | Lost 4 parts (2p2w) 2847 | -8/Materials | Core integrity fell below 20% 2894 | -8/Materials | Destroyed self with Mini Grenade Launcher Last Messages --------------- 02801_ Destabilizing: Short circuit. 02811_ Slammed into X-57 Shotgunner. 02820_ K-01 Serf collects debris. 02821_ Slammed into X-57 Shotgunner. 02824_ K-01 Serf collects debris. 02829_ The unstable cave ceiling collapses. 02831_ ALERT: Suspicious intruders detected, dispatching Specialist reinforcements to area. 02833_ K-01 Serf collects debris. 02854_ Broken Gauss Cannon destroyed. 02861_ Acquired 60 matter. [Achievement: Hydra] 02873_ X-57 Shotgunner destroyed. 02879_ U-05 Engineer lays Concrete. 02881_ U-05 Engineer builds a Wall. 02885_ U-05 Engineer lays Concrete. 02888_ U-05 Engineer builds a Wall. 02889_ K-01 Serf collects debris. 02893_ U-05 Engineer lays Concrete. 02894_ The unstable cave ceiling collapses. Map ----- +----------------------------------------------------+ | #########????????????????????????????????????????? | | ??????????????????????????????????????? | | ??????????????????????????????????????? | | ??????????????????????????????????????? | | #######??????????????????????????????????????????? | | ???????????#####?????????????????????????????????? | | ??????##???" !!#?????????????????????????????????? | | ###???#"###" !!#?????????????????????????????????? | | ##### #?????????????????????????????????? | | #?????????????????????????????????? | | < #?????????????????????????????????? | | ##### % #?????????????????????????????????? | | ###???## %#"#########????????????????????????????? | | ??###### #% #????????????????????????????? | | ### # # + #????????????????????????????? | | # # % "" #????????????????????????????? | | ##### # !!! #??"?????????????????????????? | | # !! " ##"??????????????????????????? | | # +% !! "" ""????????H??????????????????? | | #% #????????????????????????????? | | # #??????????#?????????????????? | | ## ]#####""####????????? #?????????????????? | | %%#???####?###?# ###???????????????? | | ##### ## # #???????????????? | | ##+##""""# #;#;## # #! #???????????????? | | " % = uu@kx[ + #????????? | | """ """ "########;; # ##[% #???????????????? | | """ """ "#??????# ### #### #???????????????? | | """ """ ##??????####?##?????#####???????????????? | | ????????????????????????????????????????? | | ?#?######????????????????????????????????????????? | | | | | | | | | | | | | | | | | | | | | | | | | | | | | | | | | | | | | | | +----------------------------------------------------+ Best States ------------- Heat Dissipation 31 Energy Generation 40 Energy Capacity 595 Matter Stores 300 Matter Capacity 400 Sight Range 18 Terrain Scan Density 10 Evasion (%) 55 Targeting Accuracy 5 Recoil Reduction 2 Item Schematics ----------------- None Robot Schematics ------------------ None Fabricated ------------ Nothing Repaired ---------- Nothing Studied --------- None Alien Tech Used ----------------- None Achievements -------------- Bumper Bots Close Call DATA ERROR: Steam Global Achievement% For Emergencies Only GoHome() Heavy Suspicion Hydra Oops Organ Harvest Overwhelming Spot Them First There's More Where That Came From Challenges ------------ None Game ------ Seed ZeronetSensorDeconstructor Manual? 0 Play Time 00:30:30 Cumulative 7.2 hours Start 2026.08.08 @ 00:59:01 End 2026.08.08 @ 01:31:53 Sessions 1 Manual Loads 0 Difficulty Rogue Special Mode None Game No. 11 Rogue 11 Adventurer 0 Explorer 0 Win Type - Total 0 Types 0/0/0/0/0/0/0/0/0/0 Lore% 4 Gallery% 9 Achievement% 7 Wizard Run 0 Options --------- Layout 1 ASCII 0 Keyboard 0 Movement Mouse Keybinds 0 Fullscreen 2 Font 32/SmallcapsGlow Map View 50x35 Zoom Use 0% Tactical HUD 1 Map Filters NONE Filters NONE Steam 1 RUN: 426de087-7758-4f03-a827-b44794eddff5